Cogmind - Beta 17.1 @@@ ROGUE MODE // 2026.09.23 @ 12:14:20 Player: Rocko1345 Result: Self-destructed Performance ------------- Evolutions (2) 1000 Regions Visited (6) 1200 Robots Destroyed (54) 270 Value Destroyed (1196) 1196 Prototype IDs (28) 560 Alien Tech Used (0) 0 Bonus (325) 325 TOTAL SCORE: 4551 Bonus ------- Follower Combat Kills 25 Aligned with FarCom 300 Cogmind --------- Core Integrity 539/550 Matter 280/300 Energy 240/240 System Corruption 1% Temperature Cool (0) Movement Treading (210) Ox1 Location -8/Materials Parts ------- > --- POWER (1) -------- Nuclear Core > --- PROPULSION (4) --- Armored Treads Armored Treads Armored Treads Armored Treads > --- UTILITY (4) ------ Huge Storage Unit Hardlight Generator Shield Generator Hacking Suite > --- WEAPON (2) ------- AWS/Gauss > --- INVENTORY (25) --- Armored Wheel VTOL Module Thermal Generator Improved Heat Sink Cooling System Cooling System Small Storage Unit Humpback Improved Terrain Scan Processor Seismic Detector Reaction Control System Improved Utility Shielding Shock Rifle Spread Laser Light EM Pulse Cannon Light Assault Rifle Heavy Assault Rifle Rocket Launcher Datajack Mining Laser Peak State ------------ > --- POWER ------------ Nuclear Core > --- PROPULSION ------- Armored Treads Armored Treads Armored Treads Armored Treads > --- UTILITY ---------- Huge Storage Unit Hardlight Generator Shield Generator Hacking Suite > --- WEAPON ----------- AWS/Gauss > --- INVENTORY -------- Armored Wheel VTOL Module Thermal Generator Improved Heat Sink Cooling System Cooling System Small Storage Unit Humpback Improved Terrain Scan Processor Seismic Detector Reaction Control System Improved Utility Shielding Shock Rifle Spread Laser Light EM Pulse Cannon Light Assault Rifle Heavy Assault Rifle Rocket Launcher Datajack Mining Laser [Rating: 44] Favorites ----------- Power Nuclear Core Engine Ion Engine Power Core Nuclear Core Propulsion Armored Treads Treads Armored Treads Wheel Armored Wheel Flight Unit VTOL Module Utility Huge Storage Unit Device Shield Generator Storage Huge Storage Unit Hackware Hacking Suite Weapon Spread Laser Energy Gun Spread Laser Ballistic Gun Heavy Assault Rifle Launcher Grenade Launcher Build | -11 -10 -9 -9 -9 -8 -8 ------- Run | Yrd Mat Mat Min Exi Min Mat Slots Evolved 4 | . . 2 . . . 2 Power . | . . . . . . . Propulsion 2 | . . 2 . . . . Utility 2 | . . . . . . 2 Weapon . | . . . . . . . Parts Attached 31 | 7 5 16 . 1 . 2 Power 3 | 1 . 2 . . . . Engine 2 | 1 . 1 . . . . Core 1 | . . 1 . . . . Reactor . | . . . . . . . Propulsion 13 | 2 2 9 . . . . Treads 6 | 2 . 4 . . . . Leg . | . . . . . . . Wheel 3 | . . 3 . . . . Hover . | . . . . . . . Flight 4 | . 2 2 . . . . Utility 9 | 2 2 3 . . . 2 Device 5 | 1 2 1 . . . 1 Storage 3 | 1 . 2 . . . . Processor . | . . . . . . . Hackware 1 | . . . . . . 1 Protection . | . . . . . . . Artifact . | . . . . . . . Weapon 6 | 2 1 2 . 1 . . Energy Gun 3 | 2 . 1 . . . . Energy Cannon . | . . . . . . . Ballistic Gun 2 | . . 1 . 1 . . Ballistic Cannon . | . . . . . . . Launcher 1 | . 1 . . . . . Special Weapon . | . . . . . . . Impact Weapon . | . . . . . . . Slashing Weapon . | . . . . . . . Piercing Weapon . | . . . . . . . Special Melee Weapon . | . . . . . . . Unidentified Prototypes . | . . . . . . . Parts Lost 4 | . 3 1 . . . . Power . | . . . . . . . Propulsion 2 | . 1 1 . . . . Utility 1 | . 1 . . . . . Weapon 1 | . 1 . . . . . Highest Loss Streak 2 | . 2 1 . . . . To Critical Strikes . | . . . . . . . Average Backups 11 | . 2 5 10 13 18 20 Power . | . . . . . . . Propulsion 1 | . . . 1 2 2 2 Utility 5 | . 1 3 6 6 9 10 Weapon 3 | . . 1 3 4 6 7 Tool/Special . | . . . . . . . Unused Backups 15 | . 1 . . . . 14 Power . | . . . . . . . Propulsion 1 | . . . . . . 1 Utility 8 | . 1 . . . . 7 Weapon 5 | . . . . . . 5 Tool/Special 1 | . . . . . . 1 Average Slot Usage (%) 93 | . 97 91 100 96 88 87 Engine 2 | . 14 2 . . . . Core 9 | . . 8 11 11 11 9 Treads 39 | . 25 34 44 44 44 36 Flight 1 | . 1 6 . . . . Device 11 | . 13 11 11 11 11 16 Storage 11 | . 13 10 11 11 11 9 Energy Gun 8 | . 25 7 11 7 . . Ballistic Gun 8 | . . 6 11 11 11 9 Peak Build Rating 44 | 7 9 23 24 36 38 44 Average Rating 25 | 4 6 19 23 28 37 43 On Entrance 19 | . 7 8 23 24 36 38 Avg Prop Armor Cover (%) 5 | . . 5 . . . . Naked Turns . | . . . . . . . Heaviest Build 104 | 15 16 95 95 99 99 104 Greatest Support 80 | 40 40 80 80 80 80 80 Greatest Overweight (x) 3 | . 3 1 1 1 1 1 Average Overweight (x) . | . . . 1 1 1 1 Largest Inventory Capacity 25 | 8 8 25 25 25 25 25 Average Capacity 21 | 6 7 18 25 25 25 25 Most Carried 21 | . 5 9 13 17 21 21 Average Carried 11 | . 2 5 10 13 20 21 Final Capacity 25 | 8 5 25 25 25 25 25 Final Carried 21 | . 5 9 13 17 21 21 Class Distribution -------------------- 98% | Mutant Dominant Class ---------------- Mutant | -10/Materials Mutant | -9/Materials Mutant | -9/Mines Mutant | -9/Exiles Mutant | -8/Mines Mutant | -8/Materials Resources | -11 -10 -9 -9 -9 -8 -8 ----------- Run | Yrd Mat Mat Min Exi Min Mat Matter Collected 743 | 115 201 370 27 . 10 20 Remotely . | . . . . . . . Salvage Created 1383 | 27 346 557 28 . 205 220 Parts 93 | 3 26 38 1 . 12 13 Haulers Intercepted . | . . . . . . . Recyclers Shooed 2 | . 1 1 . . . . Parts Field Recycled . | . . . . . . . Retrieved Matter . | . . . . . . . Parts Self-Destructed . | . . . . . . . Prevented . | . . . . . . . Parts Restored . | . . . . . . . Kills | -11 -10 -9 -9 -9 -8 -8 ------- Run | Yrd Mat Mat Min Exi Min Mat Combat Hostiles Destroyed 41 | . 13 15 2 . 6 5 Guns 39 | . 11 15 2 . 6 5 AOE 1 | . 1 . . . . . Classes Destroyed 9 | 1 5 1 . . 1 1 Worker 4 | . 2 1 . . . 1 Builder 1 | . 1 . . . . . Tunneler 3 | 1 . 2 . . . . Watcher 5 | . 1 2 . . . 2 Swarmer 20 | . 9 3 2 . 3 3 Grunt 16 | . 4 9 . . 2 1 Brawler 1 | . . . . . 1 . Sentry 3 | . . 3 . . . . Hunter 1 | . . . . . . 1 Best Kill Streak 10 | 1 10 3 2 . 3 6 Combat Bots Only 8 | . 8 2 2 . 3 4 Max Kills in Single Turn 2 | 1 2 2 2 . 1 2 Gunslinging 1 | . 1 . 1 . . . Exploded 1 | . 1 . . . . . Melee . | . . . . . . . Uniques/NPCs Destroyed . | . . . . . . . Combat | -11 -10 -9 -9 -9 -8 -8 -------- Run | Yrd Mat Mat Min Exi Min Mat Hostile Shots Fired 194 | . 61 77 9 . 16 31 Missed 59 | . 18 23 2 . 7 9 Hits 135 | . 43 54 7 . 9 22 Projectile 135 | . 43 54 7 . 9 22 Critical Strikes 1 | . 1 . . . . . Damage Taken 1469 | . 487 715 48 . 93 126 Core 209 | . 98 86 14 . . 11 Absorbed by Shields 223 | . . 79 19 . 37 88 Core Remaining (%) 78 | 100 60 . . . 75 . Volleys Fired 95 | 1 35 55 4 . . . Largest 2 | 2 2 2 2 . . . Hottest 100 | 100 100 88 88 . . . Shots Fired 223 | 2 61 102 8 . 26 24 Gun 221 | 2 59 102 8 . 26 24 Cannon . | . . . . . . . Launcher 2 | . 2 . . . . . Special . | . . . . . . . Kinetic 106 | . . 52 4 . 26 24 Thermal 115 | 2 59 50 4 . . . Explosive 2 | . 2 . . . . . Electromagnetic . | . . . . . . . Robot Hit Streak 14 | 2 9 9 7 . 13 14 Robot Miss Streak 8 | . 2 8 5 . 2 2 Penetration Max . | . . . . . . . Secondary Targets 4 | . 1 2 1 . . . Max Gunslinging Chain 1 | . 1 1 1 . . . Autonomous 50 | . . . . . 26 24 Shots Hit Robots 162 | 2 35 77 6 . 23 19 Core Hits 123 | 1 21 74 10 . 7 10 Critical Kills . | . . . . . . . Critical Parts Destroyed 1 | . . . . . . 1 Critical Strikes 3 | 1 1 . . . . 1 Burn 2 | 1 1 . . . . . Destroy 1 | . . . . . . 1 Melee Attacks . | . . . . . . . Impact . | . . . . . . . Slashing . | . . . . . . . Piercing . | . . . . . . . Sneak Attacks . | . . . . . . . Combat Hostiles . | . . . . . . . Follow-up Attacks . | . . . . . . . Damage Inflicted 3139 | 26 677 1121 84 . 622 609 Guns 2898 | 26 486 1121 82 . 574 609 Cannons . | . . . . . . . Explosions 239 | . 191 . . . 48 . Melee . | . . . . . . . Ramming 2 | . . . 2 . . . Kinetic 1683 | . . 471 29 . 574 609 Thermal 1263 | 26 486 650 53 . 48 . Explosive 191 | . 191 . . . . . Electromagnetic . | . . . . . . . Impact . | . . . . . . . Slashing . | . . . . . . . Piercing . | . . . . . . . Highest Corruption 1 | . . . . . . 1 Average Corruption 1 | . . . . . . 1 Corruption Purged . | . . . . . . . Corruption Blocked . | . . . . . . . Effects 3 | . . . . . . 3 Matter Fused 3 | . . . . . . 3 Overload Shots . | . . . . . . . Overflow Damage 26 | . 26 . . . . . Projectiles . | . . . . . . . Explosions 26 | . 26 . . . . . Melee . | . . . . . . . Knockbacks . | . . . . . . . Impact . | . . . . . . . Kinetic . | . . . . . . . Secondary . | . . . . . . . Self-Inflicted Damage 69 | . 69 . . . . . Shots 2 | . 2 . . . . . Rammed 1 | . . . 1 . . . Targets Rammed 1 | . . . 1 . . . Kicked . | . . . . . . . Crushed . | . . . . . . . Highest Temperature 316 | 39 316 210 60 . . . Average Temperature 92 | 20 119 66 28 . . . Received Heat Transfer 478 | . 135 271 12 . 42 18 Effects 1 | . 1 . . . . . Matter Decay 1 | . 1 . . . . . Siege Activations . | . . . . . . . Martial Activations . | . . . . . . . Shielding Activations . | . . . . . . . Robots Disrupted . | . . . . . . . Combat Hostiles . | . . . . . . . Robots Corrupted . | . . . . . . . Combat Hostiles . | . . . . . . . Parts Fried . | . . . . . . . Impact Corruptions . | . . . . . . . Robots Melted 1 | . 1 . . . . . Combat Hostiles 1 | . 1 . . . . . Parts Melted 5 | . 5 . . . . . Heat Transferred 2585 | 148 1517 795 75 . 50 . Parts Sabotaged . | . . . . . . . Parts Stolen . | . . . . . . . Parts Stripped . | . . . . . . . Power Chain Reactions . | . . . . . . . Alert | -11 -10 -9 -9 -9 -8 -8 ------- Run | Yrd Mat Mat Min Exi Min Mat Maximum Alert Level 1 | . 1 1 . . . . Low Security (%) 96 | 100 86 91 100 . 100 100 Level 1 3 | . 13 8 . . . . Level 2 . | . . . . . . . Level 3 . | . . . . . . . Level 4 . | . . . . . . . Level 5 . | . . . . . . . High Security . | . . . . . . . Max Security . | . . . . . . . Peak Influence 236 | 5 236 223 127 . 130 112 Initial 89 | . . 89 77 . . . Average 34 | . 63 56 14 . 26 27 Influence Increases 1265 | 5 411 416 82 . 178 173 Destroy 0b10 Robot/C 840 | . 260 300 60 . 120 100 Destroy 0b10 Robot/NC 65 | 5 20 25 . . . 15 Destroy Leader 190 | . 52 74 20 . 20 24 Allied During Kill 2 | . . . 2 . . . Successful Hack 31 | . 18 . . . . 13 Disable Machine 30 | . . . . . 15 15 Destroy Structure 47 | . 16 2 . . 23 6 Lose Combat Pursuer 60 | . 45 15 . . . . Influence Decreases 1250 | 5 199 429 281 . 178 158 Entered New Map 245 | . . 123 122 . . . Time Decay 965 | 5 169 296 159 . 178 158 Lost Part 40 | . 30 10 . . . . Squads Dispatched 4 | . 1 1 1 . . 1 Investigation 1 | . . 1 . . . . Extermination . | . . . . . . . Reinforcement 3 | . 1 . 1 . . 1 Assault . | . . . . . . . Garrison . | . . . . . . . Intercept . | . . . . . . . Searches Triggered . | . . . . . . . Construction Impeded 1 | . . . 1 . . . Haulers Reinforced . | . . . . . . . Active Scanning Responses . | . . . . . . . Cargo Convoy Interrupts . | . . . . . . . Stealth | -11 -10 -9 -9 -9 -8 -8 --------- Run | Yrd Mat Mat Min Exi Min Mat Distress Signals 7 | . 1 5 . . . 1 Communications Jammed . | . . . . . . . Distress Signals . | . . . . . . . Times Spotted 63 | . 19 27 4 . 6 7 Peak Tracking Total 6 | . 5 6 3 . 3 3 Tactical Retreats 3 | . 2 1 . . . . Traps | -11 -10 -9 -9 -9 -8 -8 ------- Run | Yrd Mat Mat Min Exi Min Mat Traps Triggered . | . . . . . . . Indirectly . | . . . . . . . Trap Hack Attempts . | . . . . . . . Triggered . | . . . . . . . Disarmed . | . . . . . . . Reprogrammed . | . . . . . . . Reused . | . . . . . . . Traps Extracted . | . . . . . . . Installed . | . . . . . . . Triggered . | . . . . . . . Machines | -11 -10 -9 -9 -9 -8 -8 ---------- Run | Yrd Mat Mat Min Exi Min Mat Machines Disabled 2 | . . . . . 1 1 Max in Single Turn 1 | . . . . . 1 1 Machines Repaired . | . . . . . . . Machines Dismantled . | . . . . . . . Machines Sabotaged . | . . . . . . . Overloaded Fab Kills . | . . . . . . . Hacking | -11 -10 -9 -9 -9 -8 -8 --------- Run | Yrd Mat Mat Min Exi Min Mat Machines Accessed 15 | . 5 4 . 5 . 1 Terminals 6 | . 4 1 . . . 1 Fabricators . | . . . . . . . Repair Stations . | . . . . . . . Recycling Units 3 | . 1 2 . . . . Scanalyzers 1 | . . 1 . . . . Garrison Access . | . . . . . . . Total Hacks 68 | . 19 13 . 32 . 4 Successful 51 | . 10 6 . 32 . 3 Failed 17 | . 9 7 . . . 1 Catastrophic 1 | . . 1 . . . . Database Lockouts . | . . . . . . . Manual 15 | . 11 1 . 1 . 2 Terminals 22 | . 15 3 . . . 4 Fabricators . | . . . . . . . Repair Stations . | . . . . . . . Recycling Units 11 | . 4 7 . . . . Scanalyzers 3 | . . 3 . . . . Garrison Access . | . . . . . . . Terminal Hacks 40 | . 5 1 . 32 . 2 Record 31 | . . . . 31 . . Prototype ID Bank 3 | . 2 . . . . 1 Branch Access Points 1 | . 1 . . . . . Emergency Access Points 1 | . . 1 . . . . Machine Index 1 | . . . . . . 1 Locate Traps 1 | . 1 . . . . . Zone Layout 1 | . 1 . . . . . Proto ID Catalog 1 | . . . . 1 . . Fabricator Hacks . | . . . . . . . Repair Station Hacks . | . . . . . . . Recycling Unit Hacks 5 | . 1 4 . . . . Report Inventory 4 | . 1 3 . . . . Retrieve Components 1 | . . 1 . . . . Scanalyzer 1 | . . 1 . . . . Retrieve Study 1 | . . 1 . . . . Garrison Access Hacks . | . . . . . . . Unauthorized Hacks 5 | . 4 . . . . 1 Terminals 3 | . 2 . . . . 1 Track 1 | . 1 . . . . . Botnet 2 | . 1 . . . . 1 Fabricators . | . . . . . . . Repair Stations . | . . . . . . . Recycling Units 2 | . 2 . . . . . Monitor 1 | . 1 . . . . . Recyclers 1 | . 1 . . . . . Scanalyzers . | . . . . . . . Garrison Access . | . . . . . . . Data Cores Recovered . | . . . . . . . Used . | . . . . . . . Hacking Detections 10 | . 5 4 . . . 1 Full Trace Events 2 | . . 1 . . . 1 Feedback Events 1 | . . . . . . 1 Corruption 1 | . . . . . . 1 Feedback Blocked . | . . . . . . . Robot Schematics Acquired . | . . . . . . . Robots Built . | . . . . . . . Authchips . | . . . . . . . Time . | . . . . . . . Total Robot Build Rating . | . . . . . . . Part Schematics Acquired . | . . . . . . . Parts Built . | . . . . . . . Authchips . | . . . . . . . Time . | . . . . . . . Total Part Build Rating . | . . . . . . . Part Studies Acquired 1 | . . 1 . . . . Parts Repaired . | . . . . . . . Time . | . . . . . . . Parts Recycled . | . . . . . . . Recycled Matter . | . . . . . . . Retrieved Matter . | . . . . . . . Retrieved Components 1 | . . 1 . . . . Parts Scanalyzed . | . . . . . . . Part Schematics Acquired . | . . . . . . . Parts Damaged . | . . . . . . . Bothacking | -11 -10 -9 -9 -9 -8 -8 ------------ Run | Yrd Mat Mat Min Exi Min Mat Used RIF Installer . | . . . . . . . Robots Hacked . | . . . . . . . Non-combat . | . . . . . . . Combat . | . . . . . . . Robot Hacks Applied . | . . . . . . . Relay Couplers Released . | . . . . . . . Fabnet Peak Effective % . | . . . . . . . Robots Rewired . | . . . . . . . Allies Hacked . | . . . . . . . Hacks Repelled . | . . . . . . . Allies | -11 -10 -9 -9 -9 -8 -8 -------- Run | Yrd Mat Mat Min Exi Min Mat Total Allies 1 | . . . 1 . . . Largest Group 1 | . . . 1 . . . Highest-Rated Group 31 | . . . 31 . . . Highest-Rated Ally 31 | . . . 31 . . . Total Orders . | . . . . . . . Ally Attacks 2 | . . . 2 . . . Total Damage 21 | . . . 21 . . . Kills 1 | . . . 1 . . . Allies Corrupted . | . . . . . . . Allies Melted . | . . . . . . . Intel | -11 -10 -9 -9 -9 -8 -8 ------- Run | Yrd Mat Mat Min Exi Min Mat Active Infowar (turns) 640 | 3 627 10 . . . . Seismic 640 | 3 627 10 . . . . Robot Analysis Total . | . . . . . . . Derelict Logs Recovered 1 | . . . 1 . . . Drone Launches . | . . . . . . . Drone Recoveries . | . . . . . . . Exploration | -11 -10 -9 -9 -9 -8 -8 ------------- Run | Yrd Mat Mat Min Exi Min Mat Turns Passed 5917 | 69 654 1145 1335 1071 1037 606 Spaces Moved 2719 | 38 301 622 618 509 451 180 Core 4 | 4 . . . . . . Treads 2404 | 34 264 348 618 509 451 180 Legs . | . . . . . . . Wheels 113 | . . 113 . . . . Hover . | . . . . . . . Flight 198 | . 37 161 . . . . Fastest Speed 26 | 50 32 26 210 210 210 210 Average Speed 187 | 148 145 147 210 210 210 210 Slowest Speed 295 | 160 295 250 210 210 210 210 Overloaded Moves . | . . . . . . . Propulsion Burnouts . | . . . . . . . Robots Hopped 1 | . . 1 . . . . Potential Cave-ins . | . . . . . . . Cave-ins Triggered . | . . . . . . . Exploration Rate (%) 51 | 3 47 31 98 89 78 15 Regions Visited 6 Branch Regions 3 Pre-discovered Areas 1 | . . . . 1 . . Known Exits Taken . | . . . . . . . Unknown Exits Taken 6 | 1 1 1 1 1 1 . Scrap Searched 5 | . . . 3 . 2 . Spaces Dug . | . . . . . . . Terrain Destroyed 55 | . 18 . . . 30 7 Melee . | . . . . . . . Projectile 26 | . . . . . 19 7 AOE 29 | . 18 . . . 11 . Terrain Rammed . | . . . . . . . Walls Destroyed . | . . . . . . . Machines Disabled . | . . . . . . . Actions | -11 -10 -9 -9 -9 -8 -8 --------- Run | Yrd Mat Mat Min Exi Min Mat Total 3353 | 45 455 744 647 513 542 407 Wait 477 | . 103 40 21 . 88 225 Move 2711 | 37 300 619 617 508 450 180 Hop 1 | . . 1 . . . . Pick Up 22 | . 6 6 4 2 4 . Fast Attach 14 | 7 3 2 . . . 2 Attach 7 | . 1 5 . 1 . . Detach 7 | . 3 2 . 2 . . Swap 13 | . 1 12 . . . . Drop 5 | . 3 2 . . . . Fire 95 | 1 35 55 4 . . . Melee . | . . . . . . . Ram . | . . . . . . . Kick . | . . . . . . . Crush 1 | . . . 1 . . . Escape Stasis . | . . . . . . . Rewire . | . . . . . . . Trap . | . . . . . . . Miscellaneous . | . . . . . . . Route ------- -11/Scrapyard -10/Materials (discovered 3 exits: *Mat / *Min x2) -9/Materials -9/Mines (discovered 3 exits: *Mat x2 / *Exi) -9/Exiles -8/Mines -8/Materials (discovered 1 exit: Fac) History --------- Turn | Location | Event 7 | -11/Scrapyard | Discovered new exit (range 15) 70 | -11/Scrapyard | Entered Materials 316 | -10/Materials | Build established: Mutant 400 | -10/Materials | Discovered new exit (range 12) 408 | -10/Materials | Identified exit to Mines 613 | -10/Materials | Destroyed 8 combat bots 719 | -10/Materials | Discovered new exit (range 14) 724 | -10/Materials | Entered another Materials area 724 | -9/Materials | Evolved 2 slots: Propulsion x2 1844 | -9/Materials | Discovered new exit (range 12) 1869 | -9/Materials | Entered Mines 1890 | -9/Mines | Met a Derelict bent on vengeance 2008 | -9/Mines | Discovered new exit (range 16) 2627 | -9/Mines | Received a Mining Laser from a helpful Derelict 2944 | -9/Mines | Discovered new exit (range 13) 3194 | -9/Mines | Deemed a non-threat by the Exiles lab entrance 3196 | -9/Mines | Discovered new exit (range 5) 3204 | -9/Mines | Entered Exiles 3257 | -9/Exiles | Met 8R-AWN 3291 | -9/Exiles | Met EX-HEX 3377 | -9/Exiles | Met EX-DEC 3426 | -9/Exiles | Visited The Gauntlet 3664 | -9/Exiles | Learned location of Zion (-6) 3721 | -9/Exiles | Met EX-BIN 3753 | -9/Exiles | Aligned with FarCom system 3755 | -9/Exiles | Given EX-Vault access code 3895 | -9/Exiles | Opened EX-Vault 3906 | -9/Exiles | Found Prototype Ballistic Gun 3917 | -9/Exiles | Identified AWS/Gauss 4026 | -9/Exiles | Warned to stay clear of 0b10 Research branches 4252 | -9/Exiles | Discovered new exit (range 14) 4275 | -9/Exiles | Left Exiles lab with AWS/Gauss 4275 | -9/Exiles | Entered Mines 5296 | -8/Mines | Discovered new exit (range 3) 5312 | -8/Mines | Entered Materials 5312 | -8/Materials | Evolved 2 slots: Utility x2 5313 | -8/Materials | Identified exit to Factory 5918 | -8/Materials | Self-destructed Last Messages --------------- 05695_ K-01 Serf cleans the Material Processor. 05698_ K-01 Serf collects debris. 05732_ K-01 Serf cleans the Material Processor. 05755_ System corrupted: Matter fused (-7). 05759_ K-01 Serf cleans the Material Processor. 05786_ System corrupted: Matter fused (-7). 05841_ System corrupted: Matter fused (-6). 05897_ Slug penetrates G-47 Trooper. 05899_ Slug penetrates Earth. 05900_ Destroyed Aluminum Leg. 05901_ Slug penetrates G-47 Trooper. 05901_ G-47 Trooper suffers critical hit (Destroy). 05901_ Destroyed Aluminum Leg. 05901_ Slug penetrates Door. 05903_ Destroyed Lgt. Nuclear Core. 05905_ G-47 Trooper destroyed. 05905_ U-05 Engineer builds a Door. 05907_ U-05 Engineer builds a Wall. Map ----- +----------------------------------------------------+ | ?????????????????????????????????????????? | | ?????????????????????????????????????????? | | ?????????????????????????????????????????? | | ?????????????????????????????????????????? | | ?????????????????????????????????????????? | | ?????????????????????????????????????????? | | ?????????????????????????????????????????? | | ?????????????????????????????????????????? | | ?????????????????????????????????????????? | | ?????????????????????????????????????????? | | ?????????????????????????????????????????? | | ?????????????????????????????????????????? | | ?????????????????????????????????????????? | | ?????????????????????????????????????????? | | ??????????????????????????" ????????????? | | ????????????????????????? #???????????? | | ????????????????????????? #???????????? | | ?????????????????????????# #???????????? | | ?????????????????????????# #???????????? | | ?????????????????????????# #??########## | | ????????????????????????g# #?? | | ?????????????????????????# #?# """ """ " | | ??????????????????????gg?# #?# """ """ " | | ?????????????????????????+ #?# """ """ " | | ????????###########??????# #?# | | ????????# @#??????# #?# ! | | ????????# """ a[###+#### *%##########+## | | ????????# """"" %# !%%% | | ????????# """"" + = % * | | ????????# """"" # "T % | | ????????# """ # | | ????????# # | | ????????# u# """ """ """ | | ????????########### """ """ """ | | ????????Y???????? # """ """ """ ![! | | ????????????????? # ! | | ?????????????????## !! | | ??????????????????######## ############# | | ?????????????????????????# #???????????? | | ?????????????????????????# #???????????? | | ?????????????????????????# #???????????? | | ?????????????????????????# #???????????? | | ?????????????????????????# #???????????? | | ?????????????????????????# #???????????? | | ?????????????????????????? ????????????? | | ?????????????????????????????????????????? | | ?????????????????????????????????????????? | | ?????????????????????????????????????????? | | ?????????????????????????????????????????? | | ?????????????????????????????????????????? | +----------------------------------------------------+ Best States ------------- Heat Dissipation 50 Energy Generation 14 Energy Capacity 465 Matter Stores 300 Matter Capacity 300 Sight Range 16 Terrain Scan Density 10 Evasion (%) 64 Recoil Reduction 4 Offensive Hacking 10 Item Schematics ----------------- None Robot Schematics ------------------ None Fabricated ------------ Nothing Repaired ---------- Nothing Studied --------- Arm. Treads | -9/Materials | Hacked Alien Tech Used ----------------- None Achievements -------------- Drive-By Challenges ------------ None Game ------ Seed ImpulseFieldthrustRifle Manual? 0 Play Time 00:25:40 Cumulative 249.3 hours Start 2026.09.06 @ 13:38:04 End 2026.09.23 @ 12:14:20 Sessions 3 Manual Loads 0 Difficulty Rogue Special Mode None Game No. 311 Rogue 137 Adventurer 174 Explorer 0 Win Type - Total 1 Types 1/0/0/0/0/0/0/0/0/0 Lore% 68 Gallery% 57 Achievement% 42 Wizard Run 0 Options --------- Layout 2 ASCII 0 Keyboard 1 Movement Numpad Keybinds 0 Fullscreen 1 Font 24/Smallcaps Map View 50x44 Zoom Use 0% Tactical HUD 1 Map Filters NONE Filters NONE Steam 1 RUN: a5424564-adb7-48c4-b04b-babb50e9fb44